[Event "Titled Tuesday Blitz May 16 Early 2023"]
[White "lluiss"]
[Black "Flis, Pawel"]
[BlackFideId "1112864"]
[WhiteElo "2278"]
[BlackElo "1822"]
[Result "1-0"]
[Round "10"]
[TimeControl "180+2"]
[Date "2023.05.16"]
[WhiteClock "0:00:35"]
[BlackClock "0:00:10"]

1. Nf3 {[%clk 0:02:56]}  Nf6 {[%clk 0:02:54]} 2. c4 {[%clk 0:02:55]}  g6 {[%clk 0:02:52]} 3. g3 {[%clk 0:02:54]}  Bg7 {[%clk 0:02:52]} 4. Bg2 {[%clk 0:02:55]}  O-O {[%clk 0:02:53]} 5. O-O {[%clk 0:02:55]}  d6 {[%clk 0:02:53]} 6. d4 {[%clk 0:02:55]}  Nc6 {[%clk 0:02:52]} 7. Nc3 {[%clk 0:02:55]}  a6 {[%clk 0:02:52]} 8. d5 {[%clk 0:02:55]}  Na5 {[%clk 0:02:51]} 9. b3 {[%clk 0:02:55]}  c5 {[%clk 0:02:52]} 10. dxc6 {[%clk 0:02:55]}  Nxc6 {[%clk 0:02:49]} 11. Be3 {[%clk 0:02:54]}  Ng4 {[%clk 0:02:46]} 12. Bd2 {[%clk 0:02:54]}  Bf5 {[%clk 0:02:39]} 13. Rc1 {[%clk 0:02:47]}  Nb4 {[%clk 0:02:28]} 14. h3 {[%clk 0:02:40]}  Ne5 {[%clk 0:02:25]} 15. Nd4 {[%clk 0:02:38]}  Bc8 {[%clk 0:01:47]} 16. Be3 {[%clk 0:02:09]}  Rb8 {[%clk 0:01:39]} 17. f4 {[%clk 0:01:52]}  Nec6 {[%clk 0:01:33]} 18. Nf3 {[%clk 0:01:35]}  Bxc3 {[%clk 0:01:21]} 19. Rxc3 {[%clk 0:01:35]}  Nxa2 {[%clk 0:01:20]} 20. Rd3 {[%clk 0:01:27]}  Nab4 {[%clk 0:01:18]} 21. Rd2 {[%clk 0:01:27]}  Qa5 {[%clk 0:01:16]} 22. Nd4 {[%clk 0:01:12]}  Nxd4 {[%clk 0:01:14]} 23. Bxd4 {[%clk 0:01:13]}  Nc6 {[%clk 0:01:13]} 24. Ba1 {[%clk 0:01:11]}  Be6 {[%clk 0:00:53]} 25. Kh2 {[%clk 0:01:10]}  h5 {[%clk 0:00:47]} 26. h4 {[%clk 0:01:08]}  Bg4 {[%clk 0:00:43]} 27. Qc2 {[%clk 0:01:08]}  Qb6 {[%clk 0:00:37]} 28. Qc3 {[%clk 0:00:54]}  f6 {[%clk 0:00:34]} 29. e4 {[%clk 0:00:50]}  Rbc8 {[%clk 0:00:32]} 30. e5 {[%clk 0:00:47]}  dxe5 {[%clk 0:00:31]} 31. Bxc6 {[%clk 0:00:41]}  Qxc6 {[%clk 0:00:26]} 32. fxe5 {[%clk 0:00:40]}  b5 {[%clk 0:00:23]} 33. Rdf2 {[%clk 0:00:38]}  bxc4 {[%clk 0:00:19]} 34. exf6 {[%clk 0:00:38]}  cxb3 {[%clk 0:00:15]} 35. fxe7 {[%clk 0:00:37]}  Qxc3 {[%clk 0:00:13]} 36. exf8=Q+ {[%clk 0:00:36]}  Rxf8 {[%clk 0:00:12]} 37. Rxf8+ {[%clk 0:00:36]}  Kh7 {[%clk 0:00:11]} 38. Bxc3 {[%clk 0:00:35]}  Be6 {[%clk 0:00:10]} 39. Rh8# {[%clk 0:00:35]} 1-0


[Site "https://www.chess.com"]

[Event "Titled Tuesday Blitz May 16 Early 2023"]
[White "Pein, Jonathan"]
[Black "FunnyDuck66"]
[WhiteFideId "417092"]
[WhiteElo "2151"]
[BlackElo "2206"]
[Result "1-0"]
[Round "10"]
[TimeControl "180+2"]
[Date "2023.05.16"]
[WhiteClock "0:00:21"]
[BlackClock "0:00:00"]

1. Nf3 {[%clk 0:02:59]}  d5 {[%clk 0:02:59]} 2. e3 {[%clk 0:02:59]}  Nf6 {[%clk 0:02:59]} 3. d4 {[%clk 0:03:00]}  Bf5 {[%clk 0:02:59]} 4. Bd3 {[%clk 0:03:00]}  Bg6 {[%clk 0:02:58]} 5. c4 {[%clk 0:02:59]}  e6 {[%clk 0:02:58]} 6. O-O {[%clk 0:02:55]}  c6 {[%clk 0:02:58]} 7. Nc3 {[%clk 0:02:52]}  Bd6 {[%clk 0:02:57]} 8. c5 {[%clk 0:02:51]}  Bc7 {[%clk 0:02:57]} 9. b4 {[%clk 0:02:49]}  Nbd7 {[%clk 0:02:53]} 10. a4 {[%clk 0:02:49]}  e5 {[%clk 0:02:53]} 11. dxe5 {[%clk 0:02:49]}  Nxe5 {[%clk 0:02:54]} 12. Bxg6 {[%clk 0:02:48]}  hxg6 {[%clk 0:02:49]} 13. h3 {[%clk 0:02:43]}  Qe7 {[%clk 0:02:40]} 14. Bb2 {[%clk 0:02:15]}  g5 {[%clk 0:02:26]} 15. Nxg5 {[%clk 0:02:03]}  Nc4 {[%clk 0:02:26]} 16. Qe2 {[%clk 0:01:56]}  Qe5 {[%clk 0:02:14]} 17. f4 {[%clk 0:01:54]}  Qe7 {[%clk 0:01:59]} 18. e4 {[%clk 0:01:48]}  Nxb2 {[%clk 0:01:53]} 19. Qxb2 {[%clk 0:01:49]}  dxe4 {[%clk 0:01:53]} 20. Ncxe4 {[%clk 0:01:47]}  Nxe4 {[%clk 0:01:53]} 21. Nxe4 {[%clk 0:01:44]}  O-O-O {[%clk 0:01:47]} 22. Rae1 {[%clk 0:01:42]}  Qd7 {[%clk 0:01:43]} 23. Ng5 {[%clk 0:01:20]}  Rhe8 {[%clk 0:00:54]} 24. Rxe8 {[%clk 0:01:08]}  Rxe8 {[%clk 0:00:55]} 25. Qxg7 {[%clk 0:01:07]}  Re2 {[%clk 0:00:33]} 26. Qxf7 {[%clk 0:00:59]}  Qd2 {[%clk 0:00:31]} 27. Qf8+ {[%clk 0:00:55]}  Bd8 {[%clk 0:00:25]} 28. Qf5+ {[%clk 0:00:55]}  Kb8 {[%clk 0:00:24]} 29. Qg4 {[%clk 0:00:56]}  Bf6 {[%clk 0:00:23]} 30. Nf3 {[%clk 0:00:54]}  Qe3+ {[%clk 0:00:21]} 31. Kh1 {[%clk 0:00:51]}  a6 {[%clk 0:00:18]} 32. h4 {[%clk 0:00:39]}  Bc3 {[%clk 0:00:17]} 33. h5 {[%clk 0:00:38]}  Bxb4 {[%clk 0:00:17]} 34. h6 {[%clk 0:00:38]}  Qe7 {[%clk 0:00:06]} 35. Qg7 {[%clk 0:00:36]}  Qe8 {[%clk 0:00:03]} 36. h7 {[%clk 0:00:28]}  Qh5+ {[%clk 0:00:00]} 37. Nh2 {[%clk 0:00:21]} 1-0


[Site "https://www.chess.com"]

[Event "Titled Tuesday Blitz May 16 Early 2023"]
[White "Zaichenko, Daria"]
[Black "zsizsi99"]
[WhiteFideId "4197453"]
[WhiteElo "2039"]
[BlackElo "2144"]
[Result "0-1"]
[Round "10"]
[TimeControl "180+2"]
[Date "2023.05.16"]
[WhiteClock "0:00:11"]
[BlackClock "0:00:05"]

1. e4 {[%clk 0:02:55]}  c5 {[%clk 0:02:59]} 2. Nf3 {[%clk 0:02:55]}  d6 {[%clk 0:02:58]} 3. d4 {[%clk 0:02:55]}  cxd4 {[%clk 0:02:59]} 4. Nxd4 {[%clk 0:02:56]}  Nf6 {[%clk 0:02:59]} 5. Nc3 {[%clk 0:02:56]}  a6 {[%clk 0:03:00]} 6. Bd3 {[%clk 0:02:55]}  e5 {[%clk 0:02:57]} 7. Nb3 {[%clk 0:02:54]}  Be7 {[%clk 0:02:54]} 8. a4 {[%clk 0:02:55]}  O-O {[%clk 0:02:54]} 9. O-O {[%clk 0:02:55]}  b6 {[%clk 0:02:44]} 10. h3 {[%clk 0:02:54]}  Bb7 {[%clk 0:02:44]} 11. f4 {[%clk 0:02:52]}  Nbd7 {[%clk 0:02:43]} 12. f5 {[%clk 0:02:36]}  d5 {[%clk 0:02:32]} 13. Qf3 {[%clk 0:02:28]}  Nc5 {[%clk 0:02:26]} 14. Nxc5 {[%clk 0:02:27]}  Bxc5+ {[%clk 0:02:21]} 15. Kh2 {[%clk 0:02:26]}  dxe4 {[%clk 0:02:14]} 16. Nxe4 {[%clk 0:02:23]}  Nxe4 {[%clk 0:02:03]} 17. Bxe4 {[%clk 0:02:22]}  Bxe4 {[%clk 0:02:03]} 18. Qxe4 {[%clk 0:02:22]}  Qd4 {[%clk 0:02:04]} 19. Qxd4 {[%clk 0:02:17]}  Bxd4 {[%clk 0:02:00]} 20. c3 {[%clk 0:02:17]}  Bc5 {[%clk 0:02:00]} 21. f6 {[%clk 0:02:15]}  b5 {[%clk 0:01:47]} 22. Bg5 {[%clk 0:02:05]}  g6 {[%clk 0:01:31]} 23. axb5 {[%clk 0:01:57]}  axb5 {[%clk 0:01:29]} 24. Rxa8 {[%clk 0:01:57]}  Rxa8 {[%clk 0:01:24]} 25. Rd1 {[%clk 0:01:57]}  b4 {[%clk 0:01:16]} 26. Rd5 {[%clk 0:01:51]}  Bf8 {[%clk 0:01:15]} 27. Kg1 {[%clk 0:01:30]}  h6 {[%clk 0:00:58]} 28. Be3 {[%clk 0:01:29]}  Ra1+ {[%clk 0:00:37]} 29. Kh2 {[%clk 0:01:21]}  Ra8 {[%clk 0:00:22]} 30. cxb4 {[%clk 0:01:18]}  g5 {[%clk 0:00:14]} 31. Bc5 {[%clk 0:01:12]}  Kh7 {[%clk 0:00:12]} 32. Rxe5 {[%clk 0:01:08]}  Kg6 {[%clk 0:00:11]} 33. Rd5 {[%clk 0:00:54]}  Kxf6 {[%clk 0:00:11]} 34. Rd7 {[%clk 0:00:43]}  Rb8 {[%clk 0:00:06]} 35. Bxf8 {[%clk 0:00:38]}  Rxf8 {[%clk 0:00:06]} 36. Rd6+ {[%clk 0:00:38]}  Kg7 {[%clk 0:00:03]} 37. Rb6 {[%clk 0:00:38]}  Rc8 {[%clk 0:00:03]} 38. b5 {[%clk 0:00:35]}  Rc2 {[%clk 0:00:03]} 39. Rb8 {[%clk 0:00:32]}  Rxb2 {[%clk 0:00:03]} 40. b6 {[%clk 0:00:32]}  Kf6 {[%clk 0:00:03]} 41. b7 {[%clk 0:00:28]}  h5 {[%clk 0:00:03]} 42. Kg3 {[%clk 0:00:26]}  Rb3+ {[%clk 0:00:04]} 43. Kf2 {[%clk 0:00:26]}  h4 {[%clk 0:00:05]} 44. Ke2 {[%clk 0:00:25]}  Kf5 {[%clk 0:00:05]} 45. Kf2 {[%clk 0:00:24]}  Kf4 {[%clk 0:00:05]} 46. Ke2 {[%clk 0:00:21]}  Rb2+ {[%clk 0:00:05]} 47. Kd3 {[%clk 0:00:21]}  f6 {[%clk 0:00:04]} 48. Kc3 {[%clk 0:00:17]}  Rb6 {[%clk 0:00:04]} 49. Kc4 {[%clk 0:00:17]}  Kg3 {[%clk 0:00:05]} 50. Kc5 {[%clk 0:00:17]}  Rb1 {[%clk 0:00:05]} 51. Kc6 {[%clk 0:00:18]}  Kxg2 {[%clk 0:00:05]} 52. Rf8 {[%clk 0:00:17]}  Kxh3 {[%clk 0:00:05]} 53. Rxf6 {[%clk 0:00:13]}  g4 {[%clk 0:00:04]} 54. Rf5 {[%clk 0:00:12]}  Rxb7 {[%clk 0:00:03]} 55. Kxb7 {[%clk 0:00:12]}  g3 {[%clk 0:00:04]} 56. Rg5 {[%clk 0:00:12]}  g2 {[%clk 0:00:04]} 57. Kc6 {[%clk 0:00:12]}  Kh2 {[%clk 0:00:04]} 58. Kd5 {[%clk 0:00:12]}  g1=Q {[%clk 0:00:04]} 59. Rxg1 {[%clk 0:00:11]}  Kxg1 {[%clk 0:00:05]} 60. Ke4 {[%clk 0:00:11]}  h3 {[%clk 0:00:05]} 0-1


[Site "https://www.chess.com"]

[Event "Titled Tuesday Blitz May 16 Early 2023"]
[White "Benaddi, Mouhcine"]
[Black "agvania123"]
[WhiteFideId "9001050"]
[WhiteElo "2036"]
[BlackElo "2222"]
[Result "0-1"]
[Round "10"]
[TimeControl "180+2"]
[Date "2023.05.16"]
[WhiteClock "0:00:11"]
[BlackClock "0:00:34"]

1. Nf3 {[%clk 0:02:53]}  d5 {[%clk 0:02:59]} 2. g3 {[%clk 0:02:51]}  e6 {[%clk 0:02:59]} 3. Bg2 {[%clk 0:02:51]}  Nf6 {[%clk 0:03:00]} 4. d4 {[%clk 0:02:52]}  b6 {[%clk 0:03:00]} 5. O-O {[%clk 0:02:53]}  Bb7 {[%clk 0:03:01]} 6. c4 {[%clk 0:02:54]}  Nbd7 {[%clk 0:03:01]} 7. Nc3 {[%clk 0:02:53]}  Be7 {[%clk 0:02:56]} 8. Ne5 {[%clk 0:02:49]}  O-O {[%clk 0:02:56]} 9. Qa4 {[%clk 0:02:43]}  Nxe5 {[%clk 0:02:11]} 10. dxe5 {[%clk 0:02:07]}  Ne4 {[%clk 0:02:06]} 11. Nxe4 {[%clk 0:02:02]}  dxe4 {[%clk 0:02:07]} 12. Rd1 {[%clk 0:01:59]}  Qc8 {[%clk 0:01:56]} 13. Qc2 {[%clk 0:01:54]}  e3 {[%clk 0:01:43]} 14. Bxe3 {[%clk 0:01:50]}  Bxg2 {[%clk 0:01:43]} 15. Kxg2 {[%clk 0:01:48]}  Qb7+ {[%clk 0:01:43]} 16. f3 {[%clk 0:01:47]}  Rad8 {[%clk 0:01:43]} 17. a3 {[%clk 0:01:45]}  a5 {[%clk 0:01:39]} 18. c5 {[%clk 0:01:37]}  Qc6 {[%clk 0:01:36]} 19. b4 {[%clk 0:01:31]}  h6 {[%clk 0:01:10]} 20. Rxd8 {[%clk 0:01:10]}  Rxd8 {[%clk 0:01:10]} 21. Rc1 {[%clk 0:01:10]}  axb4 {[%clk 0:01:05]} 22. axb4 {[%clk 0:01:10]}  Qb5 {[%clk 0:01:00]} 23. cxb6 {[%clk 0:01:09]}  cxb6 {[%clk 0:01:00]} 24. Qc7 {[%clk 0:01:06]}  Qxe2+ {[%clk 0:01:00]} 25. Bf2 {[%clk 0:01:02]}  Rd2 {[%clk 0:00:55]} 26. Qxb6 {[%clk 0:00:54]}  Bxb4 {[%clk 0:00:52]} 27. Rc8+ {[%clk 0:00:53]}  Kh7 {[%clk 0:00:52]} 28. h4 {[%clk 0:00:25]}  Ra2 {[%clk 0:00:45]} 29. Qd4 {[%clk 0:00:18]}  Be1 {[%clk 0:00:35]} 30. Qd8 {[%clk 0:00:11]}  Qxf2+ {[%clk 0:00:34]} 31. Kh3 {[%clk 0:00:11]}  Qxg3# {[%clk 0:00:34]} 0-1


[Site "https://www.chess.com"]

[Event "Titled Tuesday Blitz May 16 Early 2023"]
[White "Necula, Iulian"]
[Black "Grabinsky, Vladimir"]
[WhiteFideId "1232380"]
[BlackFideId "14107074"]
[WhiteElo "1790"]
[BlackElo "2027"]
[Result "0-1"]
[Round "10"]
[TimeControl "180+2"]
[Date "2023.05.16"]
[WhiteClock "0:00:07"]
[BlackClock "0:00:07"]

1. d4 {[%clk 0:03:00]}  Nf6 {[%clk 0:02:37]} 2. Nc3 {[%clk 0:03:00]}  d5 {[%clk 0:02:35]} 3. Bf4 {[%clk 0:03:00]}  c5 {[%clk 0:02:33]} 4. e3 {[%clk 0:02:59]}  cxd4 {[%clk 0:02:32]} 5. exd4 {[%clk 0:02:59]}  a6 {[%clk 0:02:33]} 6. Nf3 {[%clk 0:02:58]}  Nc6 {[%clk 0:02:33]} 7. h3 {[%clk 0:02:57]}  Bf5 {[%clk 0:02:25]} 8. a3 {[%clk 0:02:49]}  e6 {[%clk 0:02:23]} 9. Ne5 {[%clk 0:02:44]}  Be7 {[%clk 0:02:19]} 10. Bd3 {[%clk 0:02:42]}  Nxd4 {[%clk 0:01:59]} 11. O-O {[%clk 0:02:24]}  Bxd3 {[%clk 0:01:40]} 12. Qxd3 {[%clk 0:02:25]}  Nc6 {[%clk 0:01:39]} 13. Nf3 {[%clk 0:02:15]}  O-O {[%clk 0:01:37]} 14. Rfe1 {[%clk 0:02:14]}  Bd6 {[%clk 0:01:34]} 15. Bg5 {[%clk 0:02:08]}  h6 {[%clk 0:01:30]} 16. Bh4 {[%clk 0:02:07]}  g5 {[%clk 0:01:28]} 17. Nxg5 {[%clk 0:02:07]}  hxg5 {[%clk 0:01:27]} 18. Bxg5 {[%clk 0:02:08]}  Be7 {[%clk 0:01:15]} 19. Qg3 {[%clk 0:01:58]}  Kh8 {[%clk 0:01:09]} 20. Qh4+ {[%clk 0:01:57]}  Nh7 {[%clk 0:01:09]} 21. Bxe7 {[%clk 0:01:52]}  Qxe7 {[%clk 0:01:10]} 22. Qf4 {[%clk 0:01:11]}  Rg8 {[%clk 0:01:04]} 23. Nxd5 {[%clk 0:01:01]}  Qg5 {[%clk 0:00:53]} 24. Qxg5 {[%clk 0:00:59]}  Rxg5 {[%clk 0:00:54]} 25. Ne3 {[%clk 0:00:51]}  Rd8 {[%clk 0:00:48]} 26. Rad1 {[%clk 0:00:50]}  Rxd1 {[%clk 0:00:39]} 27. Rxd1 {[%clk 0:00:50]}  Nf6 {[%clk 0:00:38]} 28. g4 {[%clk 0:00:48]}  Rb5 {[%clk 0:00:34]} 29. b4 {[%clk 0:00:46]}  Kg7 {[%clk 0:00:26]} 30. c4 {[%clk 0:00:46]}  Re5 {[%clk 0:00:26]} 31. Rd3 {[%clk 0:00:38]}  Re4 {[%clk 0:00:23]} 32. Rc3 {[%clk 0:00:23]}  Nd4 {[%clk 0:00:20]} 33. Kg2 {[%clk 0:00:22]}  Nd7 {[%clk 0:00:14]} 34. c5 {[%clk 0:00:22]}  Ne5 {[%clk 0:00:13]} 35. Nc2 {[%clk 0:00:13]}  Nxc2 {[%clk 0:00:11]} 36. Rxc2 {[%clk 0:00:14]}  Rc4 {[%clk 0:00:10]} 37. Re2 {[%clk 0:00:13]}  f6 {[%clk 0:00:08]} 38. Kg3 {[%clk 0:00:12]}  Rc3+ {[%clk 0:00:08]} 39. Kg2 {[%clk 0:00:12]}  Rxa3 {[%clk 0:00:08]} 40. f4 {[%clk 0:00:11]}  Nd3 {[%clk 0:00:07]} 41. Rxe6 {[%clk 0:00:07]}  Nxf4+ {[%clk 0:00:07]} 0-1


[Site "https://www.chess.com"]

[Event "Titled Tuesday Blitz May 16 Early 2023"]
[White "Ankudinova, Yelena"]
[Black "Sanchez, Robert"]
[WhiteFideId "13702114"]
[BlackFideId "2034360"]
[WhiteElo "1937"]
[BlackElo "1868"]
[Result "1-0"]
[Round "10"]
[TimeControl "180+2"]
[Date "2023.05.16"]
[WhiteClock "0:00:14"]
[BlackClock "0:00:26"]

1. c4 {[%clk 0:03:00]}  e5 {[%clk 0:02:58]} 2. Nc3 {[%clk 0:02:59]}  Nf6 {[%clk 0:02:58]} 3. Nf3 {[%clk 0:02:57]}  Nc6 {[%clk 0:02:58]} 4. e3 {[%clk 0:02:57]}  d5 {[%clk 0:02:58]} 5. cxd5 {[%clk 0:02:56]}  Nxd5 {[%clk 0:02:58]} 6. Bb5 {[%clk 0:02:56]}  Nxc3 {[%clk 0:02:44]} 7. bxc3 {[%clk 0:02:51]}  Bd6 {[%clk 0:02:44]} 8. d4 {[%clk 0:02:48]}  e4 {[%clk 0:02:42]} 9. Ng1 {[%clk 0:02:45]}  O-O {[%clk 0:02:41]} 10. Ne2 {[%clk 0:02:31]}  Ne7 {[%clk 0:02:38]} 11. Ng3 {[%clk 0:02:25]}  f5 {[%clk 0:02:36]} 12. Qb3+ {[%clk 0:02:24]}  Kh8 {[%clk 0:02:36]} 13. Bd2 {[%clk 0:02:19]}  Ng6 {[%clk 0:02:34]} 14. O-O-O {[%clk 0:02:16]}  c6 {[%clk 0:02:29]} 15. Be2 {[%clk 0:02:13]}  a5 {[%clk 0:02:29]} 16. c4 {[%clk 0:01:57]}  a4 {[%clk 0:02:25]} 17. Qc2 {[%clk 0:01:54]}  Ba3+ {[%clk 0:02:16]} 18. Kb1 {[%clk 0:01:53]}  c5 {[%clk 0:02:12]} 19. Bc3 {[%clk 0:01:43]}  Ra6 {[%clk 0:02:08]} 20. Ka1 {[%clk 0:01:37]}  Qe7 {[%clk 0:02:03]} 21. d5 {[%clk 0:01:34]}  Bb4 {[%clk 0:01:51]} 22. Nh5 {[%clk 0:01:25]}  Bxc3+ {[%clk 0:01:49]} 23. Qxc3 {[%clk 0:01:25]}  Ne5 {[%clk 0:01:46]} 24. Rb1 {[%clk 0:01:20]}  g6 {[%clk 0:01:45]} 25. Nf4 {[%clk 0:01:18]}  Qg7 {[%clk 0:01:43]} 26. h4 {[%clk 0:01:15]}  Kg8 {[%clk 0:01:32]} 27. h5 {[%clk 0:01:07]}  g5 {[%clk 0:01:31]} 28. h6 {[%clk 0:01:07]}  Qh8 {[%clk 0:01:27]} 29. Ne6 {[%clk 0:00:50]}  Bxe6 {[%clk 0:01:25]} 30. dxe6 {[%clk 0:00:50]}  b6 {[%clk 0:01:18]} 31. Rbd1 {[%clk 0:00:35]}  Qf6 {[%clk 0:01:13]} 32. Rd6 {[%clk 0:00:32]}  Re8 {[%clk 0:01:10]} 33. Rh5 {[%clk 0:00:24]}  g4 {[%clk 0:00:46]} 34. f4 {[%clk 0:00:20]}  exf3 {[%clk 0:00:40]} 35. gxf3 {[%clk 0:00:19]}  Rxe6 {[%clk 0:00:39]} 36. Rxe6 {[%clk 0:00:15]}  Qxe6 {[%clk 0:00:39]} 37. f4 {[%clk 0:00:15]}  Qg6 {[%clk 0:00:26]} 38. Qxe5 {[%clk 0:00:14]} 1-0


[Site "https://www.chess.com"]

[Event "Titled Tuesday Blitz May 16 Early 2023"]
[White "Dahlgren, James Allen"]
[Black "Howell, David W L"]
[WhiteFideId "22256873"]
[BlackFideId "410608"]
[WhiteElo "2188"]
[BlackElo "2567"]
[Result "0-1"]
[Round "10"]
[TimeControl "180+2"]
[Date "2023.05.16"]
[WhiteClock "0:01:34"]
[BlackClock "0:01:44"]

1. d3 {[%clk 0:02:54]}  e5 {[%clk 0:02:50]} 2. f4 {[%clk 0:02:46]}  exf4 {[%clk 0:02:44]} 3. Bxf4 {[%clk 0:02:43]}  d5 {[%clk 0:02:45]} 4. Nf3 {[%clk 0:02:41]}  Bd6 {[%clk 0:02:40]} 5. Bxd6 {[%clk 0:02:31]}  Qxd6 {[%clk 0:02:41]} 6. Nbd2 {[%clk 0:02:31]}  Nf6 {[%clk 0:02:39]} 7. e4 {[%clk 0:02:31]}  dxe4 {[%clk 0:02:34]} 8. dxe4 {[%clk 0:02:32]}  Nc6 {[%clk 0:02:26]} 9. Bd3 {[%clk 0:02:30]}  Be6 {[%clk 0:02:18]} 10. Qe2 {[%clk 0:02:24]}  Ng4 {[%clk 0:02:15]} 11. O-O-O {[%clk 0:02:16]}  O-O-O {[%clk 0:02:15]} 12. h3 {[%clk 0:02:08]}  Nge5 {[%clk 0:02:14]} 13. Nxe5 {[%clk 0:02:07]}  Nxe5 {[%clk 0:02:13]} 14. Nb3 {[%clk 0:02:05]}  Qb6 {[%clk 0:02:02]} 15. Kb1 {[%clk 0:01:58]}  Rd6 {[%clk 0:02:00]} 16. Rhf1 {[%clk 0:01:55]}  Rhd8 {[%clk 0:01:59]} 17. c4 {[%clk 0:01:48]}  Rxd3 {[%clk 0:01:43]} 18. Rxd3 {[%clk 0:01:34]}  Rxd3 {[%clk 0:01:44]} 0-1


[Site "https://www.chess.com"]

[Event "Titled Tuesday Blitz May 16 Early 2023"]
[White "Guevara Sanchez, Erick Marvin"]
[Black "NtcPou"]
[WhiteFideId "6700136"]
[WhiteElo "2040"]
[BlackElo "2031"]
[Result "1-0"]
[Round "10"]
[TimeControl "180+2"]
[Date "2023.05.16"]
[WhiteClock "0:01:40"]
[BlackClock "0:01:05"]

1. e4 {[%clk 0:03:00]}  c6 {[%clk 0:03:00]} 2. d4 {[%clk 0:02:59]}  d5 {[%clk 0:03:00]} 3. exd5 {[%clk 0:02:51]}  cxd5 {[%clk 0:03:00]} 4. Bd3 {[%clk 0:02:51]}  Nc6 {[%clk 0:03:00]} 5. c3 {[%clk 0:02:51]}  Nf6 {[%clk 0:03:00]} 6. f4 {[%clk 0:02:50]}  Bg4 {[%clk 0:02:57]} 7. Nf3 {[%clk 0:02:50]}  e6 {[%clk 0:02:55]} 8. O-O {[%clk 0:02:50]}  Bd6 {[%clk 0:02:53]} 9. Qe1 {[%clk 0:02:48]}  Bxf3 {[%clk 0:02:51]} 10. Rxf3 {[%clk 0:02:48]}  O-O {[%clk 0:02:51]} 11. Nd2 {[%clk 0:02:45]}  Qc7 {[%clk 0:02:50]} 12. Qh4 {[%clk 0:02:43]}  Ne7 {[%clk 0:02:44]} 13. g3 {[%clk 0:02:30]}  Ng6 {[%clk 0:02:38]} 14. Qh3 {[%clk 0:02:29]}  a6 {[%clk 0:02:32]} 15. Nf1 {[%clk 0:02:24]}  b5 {[%clk 0:02:29]} 16. Ne3 {[%clk 0:02:23]}  b4 {[%clk 0:02:29]} 17. Bd2 {[%clk 0:02:23]}  bxc3 {[%clk 0:02:27]} 18. Bxc3 {[%clk 0:02:04]}  Ne4 {[%clk 0:02:19]} 19. Rc1 {[%clk 0:02:01]}  Rab8 {[%clk 0:02:00]} 20. f5 {[%clk 0:01:59]}  exf5 {[%clk 0:01:52]} 21. Nxd5 {[%clk 0:01:53]}  Qc6 {[%clk 0:01:41]} 22. Qxf5 {[%clk 0:01:52]}  Nxc3 {[%clk 0:01:30]} 23. Rxc3 {[%clk 0:01:48]}  Qb7 {[%clk 0:01:21]} 24. Rb3 {[%clk 0:01:44]}  Qc6 {[%clk 0:01:17]} 25. h4 {[%clk 0:01:42]}  Rxb3 {[%clk 0:01:16]} 26. axb3 {[%clk 0:01:41]}  Ne7 {[%clk 0:01:05]} 27. Qxh7# {[%clk 0:01:40]} 1-0


[Site "https://www.chess.com"]

[Event "Titled Tuesday Blitz May 16 Early 2023"]
[White "Simonovic, Miroslav"]
[Black "Kretchetov, Alexandre"]
[WhiteFideId "919152"]
[BlackFideId "4124588"]
[WhiteElo "2042"]
[BlackElo "2421"]
[Result "1-0"]
[Round "10"]
[TimeControl "180+2"]
[Date "2023.05.16"]
[WhiteClock "0:01:54"]
[BlackClock "0:01:30"]

1. d4 {[%clk 0:02:56]}  d5 {[%clk 0:02:59]} 2. Bg5 {[%clk 0:02:57]}  f6 {[%clk 0:02:43]} 3. Bh4 {[%clk 0:02:56]}  Bf5 {[%clk 0:02:43]} 4. e3 {[%clk 0:02:56]}  Nd7 {[%clk 0:02:42]} 5. Bd3 {[%clk 0:02:56]}  Bxd3 {[%clk 0:02:41]} 6. Qxd3 {[%clk 0:02:57]}  c5 {[%clk 0:02:42]} 7. dxc5 {[%clk 0:02:54]}  Nxc5 {[%clk 0:02:43]} 8. Qb5+ {[%clk 0:02:54]}  Nd7 {[%clk 0:02:40]} 9. Qxb7 {[%clk 0:02:54]}  e6 {[%clk 0:02:32]} 10. Qa6 {[%clk 0:02:50]}  Bc5 {[%clk 0:02:27]} 11. Qxe6+ {[%clk 0:02:48]}  Ne7 {[%clk 0:02:21]} 12. Nc3 {[%clk 0:02:42]}  d4 {[%clk 0:02:17]} 13. Nd5 {[%clk 0:02:30]}  Rc8 {[%clk 0:02:07]} 14. Nxe7 {[%clk 0:02:10]}  Qxe7 {[%clk 0:02:03]} 15. Qxe7+ {[%clk 0:02:10]}  Kxe7 {[%clk 0:02:03]} 16. exd4 {[%clk 0:02:10]}  Bxd4 {[%clk 0:02:03]} 17. O-O-O {[%clk 0:02:10]}  Be5 {[%clk 0:01:56]} 18. Nf3 {[%clk 0:02:04]}  Rhd8 {[%clk 0:01:49]} 19. Rhe1 {[%clk 0:02:01]}  Kf7 {[%clk 0:01:44]} 20. Nxe5+ {[%clk 0:01:58]}  Nxe5 {[%clk 0:01:36]} 21. Rxd8 {[%clk 0:01:59]}  Rxd8 {[%clk 0:01:36]} 22. Rxe5 {[%clk 0:01:54]}  fxe5 {[%clk 0:01:30]} 23. Bxd8 {[%clk 0:01:54]} 1-0


[Site "https://www.chess.com"]

[Event "Titled Tuesday Blitz May 16 Early 2023"]
[White "Yeletsky, Ivan"]
[Black "Erigaisi Arjun"]
[WhiteFideId "24180327"]
[BlackFideId "35009192"]
[WhiteElo "2380"]
[BlackElo "2719"]
[Result "1-0"]
[Round "11"]
[TimeControl "180+2"]
[Date "2023.05.16"]
[WhiteClock "0:00:36"]
[BlackClock "0:00:13"]

1. e4 {[%clk 0:03:00]}  d6 {[%clk 0:02:55]} 2. d4 {[%clk 0:03:00]}  g6 {[%clk 0:02:55]} 3. Nc3 {[%clk 0:02:59]}  Bg7 {[%clk 0:02:55]} 4. Be3 {[%clk 0:02:53]}  a6 {[%clk 0:02:54]} 5. g4 {[%clk 0:02:52]}  b5 {[%clk 0:02:50]} 6. Bg2 {[%clk 0:02:47]}  Bb7 {[%clk 0:02:49]} 7. h4 {[%clk 0:02:45]}  b4 {[%clk 0:02:36]} 8. Nd5 {[%clk 0:02:43]}  Nf6 {[%clk 0:02:36]} 9. h5 {[%clk 0:02:31]}  Nbd7 {[%clk 0:02:22]} 10. h6 {[%clk 0:02:29]}  Bf8 {[%clk 0:02:22]} 11. c4 {[%clk 0:02:22]}  e6 {[%clk 0:02:13]} 12. Nxf6+ {[%clk 0:02:05]}  Nxf6 {[%clk 0:02:14]} 13. Qa4+ {[%clk 0:01:44]}  Qd7 {[%clk 0:02:12]} 14. Qxb4 {[%clk 0:01:44]}  Rb8 {[%clk 0:01:58]} 15. g5 {[%clk 0:01:43]}  Nxe4 {[%clk 0:01:49]} 16. d5 {[%clk 0:01:33]}  Nc5 {[%clk 0:01:34]} 17. Qc3 {[%clk 0:01:26]}  Rg8 {[%clk 0:01:33]} 18. O-O-O {[%clk 0:01:26]}  Be7 {[%clk 0:01:25]} 19. Bxc5 {[%clk 0:01:20]}  dxc5 {[%clk 0:01:26]} 20. dxe6 {[%clk 0:01:20]}  Qxe6 {[%clk 0:01:25]} 21. Bxb7 {[%clk 0:01:20]}  Bxg5+ {[%clk 0:01:12]} 22. Kb1 {[%clk 0:01:16]}  Rxb7 {[%clk 0:01:11]} 23. Nf3 {[%clk 0:01:15]}  Bf6 {[%clk 0:01:10]} 24. Qd3 {[%clk 0:01:00]}  Rxb2+ {[%clk 0:01:03]} 25. Kc1 {[%clk 0:01:00]}  Kf8 {[%clk 0:00:29]} 26. Rhe1 {[%clk 0:00:54]}  Qc8 {[%clk 0:00:29]} 27. Qe3 {[%clk 0:00:45]}  Rh8 {[%clk 0:00:20]} 28. Qxc5+ {[%clk 0:00:39]}  Kg8 {[%clk 0:00:21]} 29. Qc6 {[%clk 0:00:39]}  Qf8 {[%clk 0:00:13]} 30. Re8 {[%clk 0:00:36]} 1-0


[Site "https://www.chess.com"]